fUSD/lending_fUSD_20250119
["ID","MTS","AMOUNT","RATE_DAILY","PERIOD"]
[349561087,1737295855470,-808.36,0.00020547,2]
[349561088,1737295855480,-500.0,0.00020547,2]
[349561089,1737295855489,-950.06,0.00020547,2]
[349561090,1737295855499,-1505.94,0.00020547,2]
[349561091,1737295855508,-500.0,0.00020547,2]
[349561092,1737295855519,-500.0,0.00020547,2]
[349561093,1737295855529,-1601.1,0.00020547,2]
[349561094,1737295855538,-1392.17,0.00020547,2]
[349561095,1737295855547,-1936.96,0.00020547,2]
[349561096,1737295855556,-913.05,0.00020547,2]
[349561097,1737295855565,-2265.47,0.00020547,2]
[349561098,1737295855574,-724.33,0.00020547,2]
[349561099,1737295855583,-500.0,0.00020547,2]
[349561100,1737295855594,-409.43863119,0.00020547,2]
[349561101,1737295855604,-500.0,0.00020547,2]
[349561102,1737295855614,-1982.14,0.00020547,2]
[349561103,1737295855623,-500.0,0.00020547,2]
[349561104,1737295855633,-553.34,0.00020547,2]
[349561105,1737295855643,-3330.96,0.00020547,2]
[349561106,1737295855653,-500.0,0.00020547,2]
[349561107,1737295855663,-366.97198104,0.00020547,2]
[349561108,1737295855672,-771.48,0.00020547,2]
[349561109,1737295855681,-779.34,0.00020547,2]
[349561110,1737295855690,-1043.03,0.00020547,2]
[349561111,1737295855700,-500.0,0.00020547,2]
[349561112,1737295855709,-1370.63,0.00020547,2]
[349561113,1737295855719,-500.0,0.00020547,2]
[349561114,1737295855729,-564.65,0.00020547,2]
[349561115,1737295855739,-3709.46,0.00020547,2]
[349561116,1737295855749,-502.23,0.00020547,2]
[349561117,1737295855759,-500.0,0.00020547,2]
[349561118,1737295855771,-500.0,0.00020547,2]
[349561119,1737295855781,-1640.85,0.00020547,2]
[349561120,1737295855791,-544.68,0.00020547,2]
[349561121,1737295855801,-1350.5,0.00020547,2]
[349561122,1737295855810,-797.87,0.00020547,2]
[349561123,1737295855819,-3651.14,0.00020547,2]
[349561124,1737295855833,-4438.25,0.00020547,2]
[349561125,1737295855843,-500.0,0.00020547,2]
[349561126,1737295855853,-500.0,0.00020547,2]
[349561127,1737295855863,-500.0,0.00020547,2]
[349561128,1737295855874,-759.5,0.00020547,2]
[349561129,1737295855884,-500.0,0.00020547,2]
[349561130,1737295855893,-892.16,0.00020547,2]
[349561131,1737295855903,-2450.03,0.00020547,2]
[349561132,1737295855914,-500.0,0.00020547,2]
[349561133,1737295855923,-1061.08837428,0.00020547,2]
[349561134,1737295855932,-501.18,0.00020547,2]
[349561135,1737295855941,-700.04,0.00020547,2]
[349561136,1737295855951,-723.03,0.00020547,2]
[349561137,1737295855959,-530.67,0.00020547,2]
[349561138,1737295855969,-2025.11,0.00020547,2]
[349561139,1737295855978,-500.0,0.00020547,2]
[349561140,1737295855988,-500.0,0.00020547,2]
[349561141,1737295855998,-864.92,0.00020547,2]
[349561142,1737295856008,-500.0,0.00020547,2]
[349561143,1737295856021,-759.68,0.00020547,2]
[349561144,1737295856031,-1553.11,0.00020547,2]
[349561145,1737295856041,-6815.31,0.00020547,2]
[349561146,1737295856051,-500.0,0.00020547,2]
[349561147,1737295856060,-586.46,0.00020547,2]
[349561148,1737295856070,-939.47,0.00020547,2]
[349561149,1737295856079,-521.18014264,0.00020547,2]
[349561150,1737295856089,-1310.9,0.00020547,2]
[349561151,1737295856099,-500.0,0.00020547,2]
[349561152,1737295856108,-203.84761657,0.00020547,2]
[349561153,1737295856118,-1177.09,0.00020547,2]
[349561154,1737295856128,-500.0,0.00020547,2]
[349561155,1737295856138,-1155.77,0.00020547,2]
[349561156,1737295856149,-500.0,0.00020547,2]
[349561157,1737295856158,-500.0,0.00020547,2]
[349561158,1737295856168,-2403.83,0.00020547,2]
[349561159,1737295856177,-5986.62,0.00020547,2]
[349561160,1737295856187,-866.62,0.00020547,2]
[349561161,1737295856196,-2276.55,0.00020547,2]
[349561162,1737295856206,-1028.52,0.00020547,2]
[349561163,1737295856215,-633.36,0.00020547,2]
[349561164,1737295856226,-727.12,0.00020547,2]
[349561165,1737295856237,-1083.84,0.00020547,2]
[349561166,1737295856247,-697.52,0.00020547,2]
[349561167,1737295856258,-500.0,0.00020547,2]
[349561168,1737295856274,-500.0,0.00020547,2]
[349561169,1737295856284,-1671.75,0.00020547,2]
[349561170,1737295856293,-872.62,0.00020547,2]
[349561171,1737295856303,-1470.37,0.00020547,2]
[349561172,1737295856313,-500.0,0.00020547,2]
[349561173,1737295856324,-2113.17,0.00020547,2]
[349561174,1737295856334,-669.95,0.00020547,2]
[349561175,1737295856343,-608.59,0.00020547,2]
[349561176,1737295856353,-6374.84,0.00020547,2]
[349561177,1737295856363,-595.58,0.00020547,2]
[349561178,1737295856374,-699.23,0.00020547,2]
[349561179,1737295856384,-538.06,0.00020547,2]
[349561180,1737295856394,-675.11,0.00020547,2]
[349561181,1737295856404,-946.85,0.00020547,2]
[349561182,1737295856414,-500.0,0.00020547,2]
[349561183,1737295856424,-535.65,0.00020547,2]
[349561184,1737295856434,-500.0,0.00020547,2]
[349561185,1737295856443,-798.35,0.00020547,2]
[349561186,1737295856453,-1273.57,0.00020547,2]
[349561187,1737295856463,-500.0,0.00020547,2]
[349561188,1737295856473,-500.0,0.00020547,2]
[349561189,1737295856482,-500.0,0.00020547,2]
[349561190,1737295856493,-152.29,0.00020592,2]
[349561191,1737295856503,-257.50674512,0.0002064,2]
[349561192,1737295856513,-500.0,0.00020654,2]
[349561193,1737295856525,-799.7713091,0.00020673,2]
[349561194,1737295856534,-500.0,0.00020683,2]
[349561195,1737295856544,-669.08,0.00020819,2]
[349561196,1737295856553,-500.0,0.0002082,2]
[349561197,1737295856562,-150.0,0.0002082,2]
[349561198,1737295856573,-440.33423153,0.00020821,2]
[349561199,1737295856583,-500.0,0.00020821,2]
[349561200,1737295856592,-500.0,0.00020821,2]
[349561201,1737295856601,-500.0,0.00020821,2]
[349561202,1737295856611,-500.0,0.00020821,2]
[349561203,1737295856621,-500.0,0.00020821,2]
[349561204,1737295856631,-500.0,0.00020821,2]
[349561205,1737295856640,-500.0,0.00020821,2]
[349561206,1737295856649,-500.0,0.00020821,2]
[349561207,1737295856659,-500.0,0.00020821,2]
[349561208,1737295856668,-500.0,0.00020821,2]
[349561209,1737295856678,-500.0,0.00020821,2]
[349561210,1737295856687,-500.0,0.00020821,2]
[349561211,1737295856697,-210.39051572,0.00020821,2]
[349561212,1737295856707,-500.0,0.00020821,2]
[349561213,1737295856717,-500.0,0.00020821,2]
[349561214,1737295856727,-500.0,0.00020821,2]
[349561215,1737295856737,-500.0,0.00020821,2]
[349561216,1737295856747,-500.0,0.00020821,2]
[349561217,1737295856758,-285.80510111,0.00020821,2]
[349561218,1737295856768,-418.14593054,0.00020821,2]
[349561219,1737295856779,-500.0,0.00020821,2]
[349561220,1737295856789,-500.0,0.00020821,2]
[349561221,1737295856800,-500.0,0.00020821,2]
[349561222,1737295856810,-500.0,0.00020821,2]
[349561223,1737295856824,-500.0,0.00020821,2]
[349561224,1737295856835,-278.95629,0.00020821,2]
[349561225,1737295856845,-500.0,0.00020821,2]
[349561226,1737295856854,-500.0,0.00020821,2]
[349561227,1737295856864,-500.0,0.00020821,2]
[349561228,1737295856874,-500.0,0.00020821,2]
[349561229,1737295856884,-537.56,0.00020821,2]
[349561230,1737295856895,-242.560686,0.00020821,2]
[349561231,1737295856905,-242.560686,0.00020821,2]
[349561232,1737295856915,-500.0,0.00020821,2]
[349561233,1737295856926,-500.0,0.00020821,2]
[349561234,1737295856936,-500.0,0.00020821,2]
[349561235,1737295856946,-500.0,0.00020821,2]
[349561236,1737295856956,-500.0,0.00020821,2]
[349561237,1737295856967,-500.0,0.00020821,2]
[349561238,1737295856978,-500.0,0.00020821,2]
[349561239,1737295856988,-566.44996397,0.00020821,2]
[349561240,1737295856998,-525.72343403,0.00020821,2]
[349561241,1737295857008,-500.0,0.00020821,2]
[349561242,1737295857017,-979.7,0.00020821,2]
[349561243,1737295857030,-500.0,0.00020821,2]
[349561244,1737295857039,-500.0,0.00020821,2]
[349561245,1737295857050,-200.0,0.00020821,2]
[349561246,1737295857059,-500.0,0.00020821,2]
[349561247,1737295857069,-500.0,0.00020821,2]
[349561248,1737295857079,-500.0,0.00020821,2]
[349561249,1737295857089,-544.90542316,0.00020821,2]
[349561250,1737295857099,-500.0,0.00020821,2]
[349561251,1737295857110,-648.95,0.00020821,2]
[349561252,1737295857120,-824.661231,0.00020821,2]
[349561253,1737295857131,-500.0,0.00020821,2]
[349561254,1737295857140,-500.0,0.00020821,2]
[349561255,1737295857151,-500.0,0.00020821,2]
[349561256,1737295857161,-500.0,0.00020821,2]
[349561257,1737295857171,-463.31505,0.00020821,2]
[349561258,1737295857180,-394.42545405,0.00020821,2]
[349561259,1737295857190,-500.0,0.00020821,2]
[349561260,1737295857200,-500.0,0.00020821,2]
[349561261,1737295857210,-500.0,0.00020821,2]
[349561262,1737295857220,-359.5502578,0.00020821,2]
[349561263,1737295857230,-161.30787903,0.00020821,2]
[349561264,1737295857240,-593.71,0.00020821,2]
[349561265,1737295857250,-240.95917408,0.00020821,2]
[349561266,1737295857260,-500.0,0.00020821,2]
[349561267,1737295857273,-500.0,0.00020821,2]
[349561268,1737295857283,-500.0,0.00020821,2]
[349561269,1737295857292,-562.68,0.00020821,2]
[349561270,1737295857302,-500.0,0.00020821,2]
[349561271,1737295857316,-500.0,0.00020821,2]
[349561272,1737295857326,-500.0,0.00020821,2]
[349561273,1737295857336,-500.0,0.00020821,2]
[349561274,1737295857346,-500.0,0.00020821,2]
[349561275,1737295857356,-500.0,0.00020821,2]
[349561276,1737295857366,-500.0,0.00020821,2]
[349561277,1737295857376,-500.0,0.00020821,2]
[349561278,1737295857386,-500.0,0.00020821,2]
[349561279,1737295857396,-500.0,0.00020821,2]
[349561280,1737295857406,-500.0,0.00020821,2]
[349561281,1737295857416,-500.0,0.00020821,2]
[349561282,1737295857425,-500.0,0.00020821,2]
[349561283,1737295857435,-182.510015,0.00020821,2]
[349561284,1737295857447,-598.03,0.00020821,2]
[349561285,1737295857458,-182.510015,0.00020821,2]
[349561286,1737295857468,-500.0,0.00020821,2]
[349561287,1737295857477,-500.0,0.00020821,2]
[349561288,1737295857487,-500.0,0.00020821,2]
[349561289,1737295857497,-500.0,0.00020821,2]
[349561290,1737295857509,-364.8645248,0.00020821,2]
[349561291,1737295857519,-500.0,0.00020821,2]
[349561292,1737295857531,-500.0,0.00020821,2]
[349561293,1737295857541,-500.0,0.00020821,2]
[349561294,1737295857551,-500.0,0.00020821,2]
[349561295,1737295857560,-601.44,0.00020821,2]
[349561296,1737295857571,-225.53753513,0.00020821,2]
[349561297,1737295857581,-500.0,0.00020821,2]
[349561298,1737295857590,-500.0,0.00020821,2]
[349561299,1737295857601,-500.0,0.00020821,2]
[349561300,1737295857611,-500.0,0.00020821,2]
[349561301,1737295857621,-525.22,0.00020821,2]
[349561302,1737295857632,-500.0,0.00020821,2]
[349561303,1737295857641,-500.0,0.00020821,2]
[349561304,1737295857651,-500.0,0.00020821,2]
[349561305,1737295857661,-500.0,0.00020821,2]
[349561306,1737295857671,-500.0,0.00020821,2]
[349561307,1737295857681,-500.0,0.00020821,2]
[349561308,1737295857691,-189.71694787,0.00020821,2]
[349561309,1737295857702,-151.0,0.00020821,2]
[349561310,1737295857712,-500.0,0.00020821,2]
[349561311,1737295857722,-500.0,0.00020821,2]
[349561312,1737295857732,-500.0,0.00020821,2]
[349561313,1737295857742,-500.0,0.00020821,2]
[349561314,1737295857752,-500.0,0.00020821,2]
[349561315,1737295857762,-500.0,0.00020821,2]
[349561316,1737295857773,-624.0,0.00020821,2]
[349561317,1737295857783,-734.71,0.00020821,2]
[349561318,1737295857793,-500.0,0.00020821,2]
[349561319,1737295857803,-636.09,0.00020821,2]
[349561320,1737295857814,-738.52,0.00020821,2]
[349561321,1737295857824,-500.0,0.00020821,2]
[349561322,1737295857835,-500.0,0.00020821,2]
[349561323,1737295857845,-684.88,0.00020821,2]
[349561324,1737295857855,-500.0,0.00020821,2]
[349561325,1737295857865,-1247.32,0.00020821,2]
[349561326,1737295857875,-500.0,0.00020821,2]
[349561327,1737295857884,-151.0,0.00020821,2]
[349561328,1737295857895,-500.0,0.00020821,2]
[349561329,1737295857907,-986.9,0.00020821,2]
[349561330,1737295857918,-2869.51,0.00020821,2]
[349561331,1737295857928,-500.0,0.00020821,2]
[349561332,1737295857939,-500.0,0.00020821,2]
[349561333,1737295857950,-500.0,0.00020821,2]
[349561334,1737295857960,-511.89,0.00020821,2]
[349561335,1737295857970,-547.55,0.00020821,2]
[349561336,1737295857980,-500.0,0.00020821,2]
[349561337,1737295857990,-500.0,0.00020821,2]
[349561338,1737295858000,-500.0,0.00020821,2]
[349561339,1737295858010,-500.0,0.00020821,2]
[349561340,1737295858022,-980.39,0.00020821,2]
[349561341,1737295858032,-360.3379624,0.00020821,2]
[349561342,1737295858042,-1901.43,0.00020821,2]
[349561343,1737295858051,-574.45,0.00020821,2]
[349561344,1737295858061,-1217.08,0.00020821,2]
[349561345,1737295858071,-500.0,0.00020821,2]
[349561346,1737295858081,-500.0,0.00020821,2]
[349561347,1737295858091,-3718.9,0.00020821,2]
[349561348,1737295858100,-1895.82,0.00020821,2]
[349561349,1737295858110,-1772.87,0.00020821,2]
[349561350,1737295858120,-907.58,0.00020821,2]
[349561351,1737295858130,-500.0,0.00020821,2]
[349561352,1737295858140,-962.1,0.00020821,2]
[349561353,1737295858149,-611.5,0.00020821,2]
[349561354,1737295858159,-1081.13,0.00020821,2]
[349561355,1737295858169,-615.07,0.00020821,2]
[349561356,1737295858179,-1824.47,0.00020821,2]
[349561357,1737295858190,-1128.83,0.00020821,2]
[349561358,1737295858200,-1134.46,0.00020821,2]
[349561359,1737295858210,-779.59,0.00020821,2]
[349561360,1737295858221,-1057.43,0.00020821,2]
[349561361,1737295858425,-500.0,0.00020821,2]
[349561362,1737295858435,-2511.83,0.00020821,2]
[349561363,1737295858445,-808.36,0.00020821,2]
[349561364,1737295858455,-500.0,0.00020821,2]
[349561365,1737295858465,-950.06,0.00020821,2]
[349561366,1737295858475,-1505.94,0.00020821,2]
[349561367,1737295858484,-500.0,0.00020821,2]
[349561368,1737295858494,-500.0,0.00020821,2]
[349561369,1737295858504,-1601.1,0.00020821,2]
[349561370,1737295858514,-1392.17,0.00020821,2]
[349561371,1737295858527,-1936.96,0.00020821,2]
[349561372,1737295858538,-913.05,0.00020821,2]
[349561373,1737295858547,-2265.47,0.00020821,2]
[349561374,1737295858557,-724.33,0.00020821,2]
[349561375,1737295858567,-500.0,0.00020821,2]
[349561376,1737295858577,-500.0,0.00020821,2]
[349561377,1737295858588,-1982.14,0.00020821,2]
[349561378,1737295858599,-500.0,0.00020821,2]
[349561379,1737295858609,-553.34,0.00020821,2]
[349561380,1737295858619,-151.0,0.00020821,2]
[349561381,1737295858629,-3330.96,0.00020821,2]
[349561382,1737295858639,-500.0,0.00020821,2]
[349561383,1737295858649,-151.0,0.00020821,2]
[349561384,1737295858659,-771.48,0.00020821,2]
[349561385,1737295858669,-779.34,0.00020821,2]
[349561386,1737295858678,-1043.03,0.00020821,2]
[349561387,1737295858687,-500.0,0.00020821,2]
[349561388,1737295858697,-618.13956057,0.00020821,2]
[349561389,1737295858707,-1370.63,0.00020821,2]
[349561390,1737295858717,-564.65,0.00020821,2]
[349561391,1737295858726,-502.23,0.00020821,2]
[349561392,1737295858736,-3709.46,0.00020821,2]
[349561393,1737295858746,-500.0,0.00020821,2]
[349561394,1737295858756,-500.0,0.00020821,2]
[349561395,1737295858765,-1640.85,0.00020821,2]
[349561396,1737295858777,-544.68,0.00020821,2]
[349561397,1737295858787,-1350.5,0.00020821,2]
[349561398,1737295858796,-797.87,0.00020821,2]
[349561399,1737295858806,-3651.14,0.00020821,2]
[349561400,1737295858817,-4438.25,0.00020821,2]
[349561401,1737295858829,-500.0,0.00020821,2]
[349561402,1737295858839,-500.0,0.00020821,2]
[349561403,1737295858849,-500.0,0.00020821,2]
[349561404,1737295858860,-759.5,0.00020821,2]
[349561405,1737295858870,-500.0,0.00020821,2]
[349561406,1737295858880,-892.16,0.00020821,2]
[349561407,1737295858889,-2450.03,0.00020821,2]
[349561408,1737295858903,-500.0,0.00020821,2]
[349561409,1737295858912,-501.18,0.00020821,2]
[349561410,1737295858922,-299.922979,0.00020821,2]
[349561411,1737295858932,-700.04,0.00020821,2]
[349561412,1737295858943,-299.922979,0.00020821,2]
[349561413,1737295858953,-723.03,0.00020821,2]
[349561414,1737295858964,-530.67,0.00020821,2]
[349561415,1737295858984,-2025.11,0.00020821,2]
[349561416,1737295859003,-500.0,0.00020821,2]
[349561417,1737295859013,-500.0,0.00020821,2]
[349561418,1737295859026,-864.92,0.00020821,2]
[349561419,1737295859036,-500.0,0.00020821,2]
[349561420,1737295859047,-759.68,0.00020821,2]
[349561421,1737295859057,-1553.11,0.00020821,2]
[349561422,1737295859067,-6815.31,0.00020821,2]
[349561423,1737295859077,-609.53816612,0.00020821,2]
[349561424,1737295859087,-586.46,0.00020821,2]
[349561425,1737295859097,-939.47,0.00020821,2]
[349561426,1737295859107,-1310.9,0.00020821,2]
[349561427,1737295859117,-500.0,0.00020821,2]
[349561428,1737295859127,-1177.09,0.00020821,2]
[349561429,1737295859136,-500.0,0.00020821,2]
[349561430,1737295859145,-151.0,0.00020821,2]
[349561431,1737295859156,-500.0,0.00020821,2]
[349561432,1737295859165,-1155.77,0.00020821,2]
[349561433,1737295859175,-500.0,0.00020821,2]
[349561434,1737295859190,-2403.83,0.00020821,2]
[349561435,1737295859200,-5986.62,0.00020821,2]
[349561436,1737295859209,-866.62,0.00020821,2]
[349561437,1737295859218,-2276.55,0.00020821,2]
[349561438,1737295859228,-1028.52,0.00020821,2]
[349561439,1737295859237,-633.36,0.00020821,2]
[349561440,1737295859248,-727.12,0.00020821,2]
[349561441,1737295859258,-1083.84,0.00020821,2]
[349561442,1737295859267,-697.52,0.00020821,2]
[349561443,1737295859279,-500.0,0.00020821,2]
[349561444,1737295859289,-500.0,0.00020821,2]
[349561445,1737295859299,-1671.75,0.00020821,2]
[349561446,1737295859308,-872.62,0.00020821,2]
[349561447,1737295859318,-1470.37,0.00020821,2]
[349561448,1737295859327,-500.0,0.00020821,2]
[349561449,1737295859338,-2113.17,0.00020821,2]
[349561450,1737295859347,-669.95,0.00020821,2]
[349561451,1737295859357,-608.59,0.00020821,2]
[349561452,1737295859367,-6374.84,0.00020821,2]
[349561453,1737295859376,-595.58,0.00020821,2]
[349561454,1737295859387,-699.23,0.00020821,2]
[349561455,1737295859396,-538.06,0.00020821,2]
[349561456,1737295859406,-675.11,0.00020821,2]
[349561457,1737295859416,-946.85,0.00020821,2]
[349561458,1737295859426,-500.0,0.00020821,2]
[349561459,1737295859435,-535.65,0.00020821,2]
[349561460,1737295859444,-500.0,0.00020821,2]
[349561461,1737295859455,-798.35,0.00020821,2]
[349561462,1737295859465,-1273.57,0.00020821,2]
[349561463,1737295859475,-500.0,0.00020821,2]
[349561464,1737295859486,-500.0,0.00020821,2]
[349561465,1737295859495,-500.0,0.00020821,2]
[349561466,1737295859506,-150.0,0.00020826,2]
[349561467,1737295859515,-150.0,0.00020828,2]
[349561468,1737295859528,-150.0,0.00020828,2]
[349561469,1737295859538,-150.0,0.00020829,2]
[349561470,1737295859547,-150.0,0.00020829,2]
[349561471,1737295859557,-150.0,0.0002083,2]
[349561472,1737295859567,-150.0,0.00020834,2]
[349561473,1737295859577,-150.0,0.00020834,2]
[349561474,1737295859587,-150.0,0.00020843,2]
[349561475,1737295859597,-150.0,0.00020846,2]
[349561476,1737295859607,-150.0,0.00020849,2]
[349561477,1737295859616,-150.0,0.00020849,2]
[349561478,1737295859625,-150.0,0.00020849,2]
[349561479,1737295859636,-150.0,0.00020853,2]
[349561480,1737295859649,-150.0,0.00020857,2]
[349561481,1737295859660,-150.0,0.00020857,2]
[349561482,1737295859669,-150.0,0.00020861,2]
[349561483,1737295859679,-150.0,0.00020863,2]
[349561484,1737295859690,-150.0,0.00020865,2]
[349561485,1737295859700,-150.0,0.00020866,2]
[349561486,1737295859709,-150.0,0.00020867,2]
[349561487,1737295859719,-150.0,0.00020867,2]
[349561488,1737295859728,-150.0,0.00020867,2]
[349561489,1737295859738,-150.0,0.00020869,2]
[349561490,1737295859749,-150.0,0.0002087,2]
[349561491,1737295859759,-150.0,0.00020872,2]
[349561492,1737295859769,-150.0,0.00020872,2]
[349561493,1737295859780,-150.0,0.00020875,2]
[349561494,1737295859790,-151.40246118,0.00020875,2]
[349561495,1737295859800,-150.0,0.00020886,2]
[349561496,1737295859809,-150.0,0.00020891,2]
[349561497,1737295859824,-150.0,0.00020898,2]
[349561498,1737295859834,-150.0,0.00020898,2]
[349561499,1737295859843,-150.0,0.00020898,2]
[349561500,1737295859852,-1955.4,0.000209,2]
[349561501,1737295859862,-4300.0,0.000209,7]
[349561502,1737295859872,-150.0,0.00020904,2]
[349561503,1737295859881,-150.0,0.00020907,2]
[349561504,1737295859890,-150.0,0.00020916,2]
[349561505,1737295859901,-150.0,0.00020918,2]
[349561506,1737295859910,-150.0,0.00020918,2]
[349561507,1737295859920,-150.0,0.00020923,2]
[349561508,1737295859929,-150.0,0.00020923,2]
[349561509,1737295859939,-150.0,0.00020924,2]
[349561510,1737295859949,-150.0,0.00020925,2]
[349561511,1737295859958,-500.0,0.00020925,2]
[349561512,1737295859967,-150.0,0.00020929,2]
[349561513,1737295859978,-150.0,0.0002093,2]
[349561514,1737295859988,-150.0,0.00020933,2]
[349561515,1737295859997,-1000.0,0.00020937,2]
[349561516,1737295860008,-150.0,0.00020941,2]
[349561517,1737295860017,-150.0,0.00020947,2]
[349561518,1737295860029,-150.0,0.00020948,2]
[349561519,1737295860038,-150.0,0.00020948,2]
[349561520,1737295860048,-150.0,0.00020951,2]
[349561521,1737295860057,-257.50674512,0.00020953,2]
[349561522,1737295860067,-150.0,0.00020954,2]
[349561523,1737295860077,-500.0,0.00020957,2]
[349561524,1737295860087,-150.0,0.00020957,2]
[349561525,1737295860096,-1000.0,0.00020959,2]
[349561526,1737295860106,-150.0,0.00020965,2]
[349561527,1737295860115,-150.0,0.0002097,2]
[349561528,1737295860124,-150.0,0.00020976,2]
[349561529,1737295860134,-150.0,0.00020977,2]
[349561530,1737295860144,-150.0,0.00020978,2]
[349561531,1737295860153,-150.0,0.0002098,2]
[349561532,1737295860163,-150.0,0.0002098,2]
[349561533,1737295860172,-150.0,0.0002098,2]
[349561534,1737295860181,-150.0,0.0002098,2]
[349561535,1737295860191,-150.0,0.00020983,2]
[349561536,1737295860200,-150.0,0.00020985,2]
[349561537,1737295860209,-1000.0,0.00020986,2]
[349561538,1737295860219,-150.0,0.00020987,2]
[349561539,1737295860228,-150.0,0.00020992,2]
[349561540,1737295860237,-582.24755543,0.00020999,2]
[349561541,1737295860247,-2110.0,0.00021,2]
[349561542,1737295860257,-46657.0,0.00021,2]
[349561543,1737295860267,-700.0,0.00021,2]
[349561544,1737295860278,-150.0,0.00021,2]
[349561545,1737295860288,-677.632417,0.00021,2]
[349561546,1737295860298,-150.0,0.00021001,2]
[349561547,1737295860308,-150.0,0.00021004,2]
[349561548,1737295860318,-150.0,0.00021005,2]
[349561549,1737295860328,-150.0,0.00021006,2]
[349561550,1737295860338,-150.0,0.00021016,2]
[349561551,1737295860348,-150.0,0.00021016,2]
[349561552,1737295860358,-150.0,0.00021017,2]
[349561553,1737295860371,-150.0,0.00021023,2]
[349561554,1737295860381,-150.0,0.00021023,2]
[349561555,1737295860392,-150.0,0.00021024,2]
[349561556,1737295860401,-1000.0,0.00021025,2]
[349561557,1737295860412,-150.0,0.0002103,2]
[349561558,1737295860422,-555.88231296,0.00021031,10]
[349561559,1737295860431,-150.0,0.00021031,2]
[349561560,1737295860441,-150.0,0.00021034,2]
[349561561,1737295860451,-150.0,0.00021034,2]
[349561562,1737295860460,-150.0,0.00021034,2]
[349561563,1737295860470,-150.0,0.0002104,2]
[349561564,1737295860479,-150.0,0.00021041,2]
[349561565,1737295860488,-150.0,0.00021044,2]
[349561566,1737295860498,-150.0,0.00021046,2]
[349561567,1737295860510,-150.0,0.00021051,2]
[349561568,1737295860527,-150.0,0.00021053,2]
[349561569,1737295860541,-150.0,0.00021053,2]
[349561570,1737295860553,-150.0,0.00021053,2]
[349561571,1737295860565,-150.0,0.00021055,2]
[349561572,1737295860579,-150.0,0.00021056,2]
[349561573,1737295860592,-150.0,0.00021059,2]
[349561574,1737295860606,-150.0,0.00021061,2]
[349561575,1737295860619,-150.0,0.00021064,2]
[349561576,1737295860634,-150.0,0.00021068,2]
[349561577,1737295860647,-150.0,0.00021069,2]
[349561578,1737295860660,-150.0,0.0002107,2]
[349561579,1737295860671,-150.0,0.00021072,2]
[349561580,1737295860683,-150.0,0.00021073,2]
[349561581,1737295860696,-150.0,0.00021073,2]
[349561582,1737295860709,-1000.0,0.00021076,2]
[349561583,1737295860723,-150.0,0.00021079,2]
[349561584,1737295860736,-150.0,0.00021079,2]
[349561585,1737295860750,-150.0,0.00021082,2]
[349561586,1737295860764,-150.0,0.00021085,2]